[Event "Kvibergspelen 2018"]
[Site "Prioritet Serneke Arena, Krutvagen 2, Gothenburg, Sweden"]
[Date "2018.04.21"]
[Round "3.13"]
[White "Strom-Engdahl, Alexander"]
[Black "Bellon Lopez, Juan"]
[Result "0-1"]
[TimeControl "15 minutes + 5 seconds per move from move one (Round 1 - 4) / 90 minutes + 30 seconds per move from move one (Round 5 - 8)"]
[BlackTitle "GM"]
[WhiteFideId "1741586"]
[BlackFideId "2200031"]
[WhiteElo "1720"]
[BlackElo "2352"]

1. Nf3 {[%clk 00:14:59]} {[%emt 00:00:09]} c5 {[%clk 00:15:10]} {[%emt
00:00:02]} 2. g3 {[%clk 00:14:56]} {[%emt 00:00:08]} Nc6 {[%clk 00:15:14]} 3.
d4 {[%clk 00:14:23]} {[%emt 00:00:39]} cxd4 {[%clk 00:15:01]} {[%emt 00:00:19]}
4. Nxd4 {[%clk 00:14:23]} {[%emt 00:00:04]} g6 {[%clk 00:15:03]} {[%emt
00:00:03]} 5. Bg2 {[%clk 00:14:21]} {[%emt 00:00:07]} Bg7 {[%clk 00:15:06]}
{[%emt 00:00:03]} 6. Nxc6 {[%clk 00:13:44]} {[%emt 00:00:42]} bxc6 {[%clk
00:15:08]} {[%emt 00:00:03]} 7. O-O {[%clk 00:13:27]} {[%emt 00:00:21]} Nf6
{[%clk 00:15:05]} {[%emt 00:00:08]} 8. c4 {[%clk 00:13:14]} {[%emt 00:00:18]}
O-O {[%clk 00:15:06]} {[%emt 00:00:04]} 9. Nc3 {[%clk 00:13:00]} {[%emt
00:00:19]} Ba6 {[%clk 00:14:37]} {[%emt 00:00:35]} 10. Qa4 {[%clk 00:11:47]}
{[%emt 00:01:18]} Qc8 {[%clk 00:14:41]} {[%emt 00:00:01]} 11. Rd1 {[%clk
00:11:23]} {[%emt 00:00:28]} e6 {[%clk 00:14:28]} {[%emt 00:00:19]} 12. e4
{[%clk 00:10:40]} {[%emt 00:00:47]} Ne8 {[%clk 00:13:55]} {[%emt 00:00:37]} 13.
Bf4 {[%clk 00:09:53]} {[%emt 00:00:53]} f5 {[%clk 00:12:54]} {[%emt 00:01:07]}
14. Rd2 {[%clk 00:09:02]} {[%emt 00:00:55]} Bxc3 {[%clk 00:12:23]} {[%emt
00:00:37]} 15. bxc3 {[%clk 00:09:04]} {[%emt 00:00:03]} fxe4 {[%clk 00:12:26]}
16. Bxe4 {[%clk 00:08:55]} {[%emt 00:00:14]} d5 {[%clk 00:12:30]} {[%emt
00:00:01]} 17. cxd5 {[%clk 00:08:26]} {[%emt 00:00:34]} cxd5 {[%clk 00:12:34]}
{[%emt 00:00:02]} 18. Bg2 {[%clk 00:08:19]} {[%emt 00:00:11]} Bc4 {[%clk
00:12:28]} {[%emt 00:00:10]} 19. Re1 {[%clk 00:07:51]} {[%emt 00:00:33]} Ng7
{[%clk 00:11:51]} {[%emt 00:00:43]} 20. Bh3 {[%clk 00:07:31]} {[%emt 00:00:25]}
a5 {[%clk 00:11:36]} {[%emt 00:00:20]} 21. Bh6 {[%clk 00:07:18]} {[%emt
00:00:18]} Re8 {[%clk 00:11:23]} {[%emt 00:00:18]} 22. Qd1 {[%clk 00:05:49]}
{[%emt 00:01:33]} Ra6 {[%clk 00:10:44]} {[%emt 00:00:44]} 23. Bxg7 {[%clk
00:05:12]} {[%emt 00:00:42]} Kxg7 {[%clk 00:10:48]} {[%emt 00:00:01]} 24. Qg4
{[%clk 00:05:10]} {[%emt 00:00:07]} Qc5 {[%clk 00:09:53]} {[%emt 00:00:58]} 25.
Qd4+ {[%clk 00:04:24]} {[%emt 00:00:53]} Qxd4 {[%clk 00:09:54]} {[%emt
00:00:04]} 26. cxd4 {[%clk 00:04:26]} {[%emt 00:00:03]} Rb6 {[%clk 00:09:49]}
{[%emt 00:00:11]} 27. Rc2 {[%clk 00:04:00]} {[%emt 00:00:29]} a4 {[%clk
00:09:39]} {[%emt 00:00:16]} 28. Bf1 {[%clk 00:03:18]} {[%emt 00:00:47]} Bxf1
{[%clk 00:09:06]} {[%emt 00:00:38]} 29. Kxf1 {[%clk 00:03:21]} {[%emt
00:00:02]} Re7 {[%clk 00:08:56]} {[%emt 00:00:14]} 30. Rce2 {[%clk 00:03:03]}
{[%emt 00:00:23]} Kf7 {[%clk 00:08:49]} {[%emt 00:00:12]} 31. Re3 {[%clk
00:02:49]} {[%emt 00:00:18]} Rb4 {[%clk 00:08:52]} {[%emt 00:00:03]} 32. Rd3
{[%clk 00:02:47]} {[%emt 00:00:07]} Rc7 {[%clk 00:08:52]} {[%emt 00:00:05]} 33.
a3 {[%clk 00:02:32]} {[%emt 00:00:20]} Rb2 {[%clk 00:08:32]} {[%emt 00:00:24]}
34. Ree3 {[%clk 00:02:13]} {[%emt 00:00:24]} Rcc2 {[%clk 00:08:18]} {[%emt
00:00:20]} 35. Rf3+ {[%clk 00:02:16]} {[%emt 00:00:03]} Ke7 {[%clk 00:08:22]}
36. Kg2 {[%clk 00:01:51]} {[%emt 00:00:30]} Rd2 {[%clk 00:08:17]} {[%emt
00:00:11]} 37. h4 {[%clk 00:01:39]} {[%emt 00:00:17]} Rxd3 {[%clk 00:08:16]}
{[%emt 00:00:06]} 38. Rxd3 {[%clk 00:01:43]} {[%emt 00:00:01]} Rb3 {[%clk
00:08:21]} 39. Re3 {[%clk 00:01:42]} {[%emt 00:00:05]} Rb2 {[%clk 00:08:00]}
{[%emt 00:00:26]} 40. Rd3 {[%clk 00:01:38]} {[%emt 00:00:09]} Kd6 {[%clk
00:08:04]} 41. Kf3 {[%clk 00:01:38]} {[%emt 00:00:05]} h5 {[%clk 00:07:34]}
{[%emt 00:00:35]} 42. Ke3 {[%clk 00:01:34]} {[%emt 00:00:08]} e5 {[%clk
00:06:53]} {[%emt 00:00:46]} 43. dxe5+ {[%clk 00:01:11]} {[%emt 00:00:28]} Kxe5
{[%clk 00:06:57]} 44. f4+ {[%clk 00:01:00]} {[%emt 00:00:16]} Kd6 {[%clk
00:07:01]} 45. Kd4 {[%clk 00:00:26]} {[%emt 00:00:38]} Rc2 {[%clk 00:07:05]}
{[%emt 00:00:01]} 46. Re3 {[%clk 00:00:21]} {[%emt 00:00:11]} Ra2 {[%clk
00:06:00]} {[%emt 00:01:09]} 47. Re5 {[%clk 00:00:11]} {[%emt 00:00:15]} Rxa3
{[%clk 00:05:40]} {[%emt 00:00:25]} 48. Rxd5+ {[%clk 00:00:15]} {[%emt
00:00:01]} Ke6 {[%clk 00:05:44]} 49. Rg5 {[%clk 00:00:18]} {[%emt 00:00:02]}
Kf6 {[%clk 00:05:48]} {[%emt 00:00:01]} 50. Kc4 {[%clk 00:00:17]} {[%emt
00:00:06]} Rf3 {[%clk 00:05:45]} {[%emt 00:00:08]} 51. Kb4 {[%clk 00:00:13]}
{[%emt 00:00:10]} a3 {[%clk 00:05:49]} {[%emt 00:00:01]} 52. Kc4 {[%clk
00:00:13]} {[%emt 00:00:05]} a2 {[%clk 00:05:44]} {[%emt 00:00:09]} 53. Ra5
{[%clk 00:00:16]} {[%emt 00:00:02]} Rxg3 {[%clk 00:05:48]} {[%emt 00:00:01]} 54.
Rxa2 {[%clk 00:00:20]} {[%emt 00:00:01]} Rf3 {[%clk 00:05:47]} {[%emt
00:00:05]} 55. Ra6+ {[%clk 00:00:12]} {[%emt 00:00:14]} Kf5 {[%clk 00:05:37]}
{[%emt 00:00:16]} 56. Ra5+ {[%clk 00:00:15]} {[%emt 00:00:02]} Kxf4 {[%clk
00:05:36]} {[%emt 00:00:06]} 57. Rg5 {[%clk 00:00:18]} {[%emt 00:00:02]} Rg3
{[%clk 00:05:40]} {[%emt 00:00:01]} 58. Rd5 {[%clk 00:00:18]} {[%emt 00:00:05]}
Rg4 {[%clk 00:05:41]} {[%emt 00:00:03]} 59. Rd8 {[%clk 00:00:12]} {[%emt
00:00:12]} Rxh4 {[%clk 00:05:39]} {[%emt 00:00:07]} 60. Kd3 {[%clk 00:00:15]}
{[%emt 00:00:02]} Kg3 {[%clk 00:05:39]} {[%emt 00:00:05]} 61. Ke2 {[%clk
00:00:18]} {[%emt 00:00:02]} Kg2 {[%clk 00:05:39]} {[%emt 00:00:05]} 62. Rg8
{[%clk 00:00:21]} {[%emt 00:00:02]} Re4+ {[%clk 00:05:42]} {[%emt 00:00:02]} 63.
Kd3 {[%clk 00:00:24]} {[%emt 00:00:02]} Rg4 {[%clk 00:05:46]} 64. Ke2 {[%clk
00:00:28]} {[%emt 00:00:02]} h4 {[%clk 00:05:49]} {[%emt 00:00:01]} 65. Rf8
{[%clk 00:00:29]} {[%emt 00:00:05]} Re4+ {[%clk 00:05:52]} {[%emt 00:00:02]} 66.
Kd3 {[%clk 00:00:32]} {[%emt 00:00:01]} Re6 {[%clk 00:05:56]} {[%emt 00:00:01]}
67. Rc8 {[%clk 00:00:27]} {[%emt 00:00:10]} h3 {[%clk 00:05:57]} {[%emt
00:00:04]} 68. Rc2+ {[%clk 00:00:31]} {[%emt 00:00:01]} Kg3 {[%clk 00:06:00]}
{[%emt 00:00:02]} 69. Kd4 {[%clk 00:00:29]} {[%emt 00:00:06]} g5 {[%clk
00:05:58]} {[%emt 00:00:08]} 70. Kd5 {[%clk 00:00:31]} {[%emt 00:00:03]} Re1
{[%clk 00:06:01]} {[%emt 00:00:01]} 71. Kd4 {[%clk 00:00:30]} {[%emt 00:00:06]}
h2 {[%clk 00:06:02]} {[%emt 00:00:04]} 0-1

[Event "Kvibergspelen 2018"]
[Site "Prioritet Serneke Arena, Krutvagen 2, Gothenburg, Sweden"]
[Date "2018.04.21"]
[Round "3.14"]
[White "Dahlstrom, Rickard"]
[Black "Lindberg, Bengt"]
[Result "0-1"]
[TimeControl "15 minutes + 5 seconds per move from move one (Round 1 - 4) / 90 minutes + 30 seconds per move from move one (Round 5 - 8)"]
[BlackTitle "IM"]
[WhiteFideId "1702050"]
[BlackFideId "1700359"]
[WhiteElo "1998"]
[BlackElo "2385"]

1. c4 {[%clk 00:15:05]} {[%emt 00:00:03]} Nf6 {[%clk 00:15:03]} {[%emt
00:00:08]} 2. Nc3 {[%clk 00:15:08]} {[%emt 00:00:02]} c5 {[%clk 00:15:05]}
{[%emt 00:00:02]} 3. Nf3 {[%clk 00:15:12]} {[%emt 00:00:02]} e6 {[%clk
00:15:08]} {[%emt 00:00:02]} 4. e4 {[%clk 00:15:11]} {[%emt 00:00:06]} Nc6
{[%clk 00:15:09]} {[%emt 00:00:04]} 5. d4 {[%clk 00:15:10]} {[%emt 00:00:06]}
cxd4 {[%clk 00:15:08]} {[%emt 00:00:06]} 6. Nxd4 {[%clk 00:15:13]} {[%emt
00:00:02]} Bb4 {[%clk 00:14:32]} {[%emt 00:00:40]} 7. f3 {[%clk 00:13:50]}
{[%emt 00:01:28]} O-O {[%clk 00:14:15]} {[%emt 00:00:21]} 8. Be3 {[%clk
00:13:06]} {[%emt 00:00:50]} d5 {[%clk 00:14:00]} {[%emt 00:00:19]} 9. Nxc6
{[%clk 00:11:35]} {[%emt 00:01:36]} bxc6 {[%clk 00:14:03]} {[%emt 00:00:02]} 10.
e5 {[%clk 00:11:04]} {[%emt 00:00:37]} Nd7 {[%clk 00:14:05]} {[%emt 00:00:03]}
11. f4 {[%clk 00:10:14]} {[%emt 00:00:55]} f6 {[%clk 00:14:05]} {[%emt
00:00:05]} 12. Qh5 {[%clk 00:07:10]} {[%emt 00:03:09]} fxe5 {[%clk 00:13:45]}
{[%emt 00:00:24]} 13. fxe5 {[%clk 00:05:48]} {[%emt 00:01:28]} Rf5 {[%clk
00:12:11]} {[%emt 00:01:38]} 14. Qh3 {[%clk 00:05:11]} {[%emt 00:00:42]} Rxe5
{[%clk 00:12:02]} {[%emt 00:00:13]} 15. O-O-O {[%clk 00:05:05]} {[%emt
00:00:12]} Bxc3 {[%clk 00:10:23]} {[%emt 00:01:44]} 16. bxc3 {[%clk 00:05:09]}
{[%emt 00:00:02]} Nf6 {[%emt 00:00:02]} 17. Bd4 {[%emt 00:01:43]} Re4 {[%emt
00:00:28]} 18. Bd3 {[%emt 00:00:25]} e5 {[%emt 00:00:05]} 19. Qg3 {[%emt
00:01:48]} exd4 {[%emt 00:00:03]} 20. Bxe4 {[%emt 00:00:07]} Nxe4 {[%emt
00:00:03]} 21. Qe5 {[%emt 00:00:11]} Bg4 {[%emt 00:01:10]} 22. Rxd4 {[%emt
00:00:11]} Qf8 {[%emt 00:00:14]} 23. cxd5 {[%emt 00:00:25]} Re8 {[%emt
00:00:37]} 24. Rxe4 {[%emt 00:00:50]} Rxe5 {[%emt 00:00:03]} 25. Rxe5 Qf4+
{[%emt 00:00:02]} 0-1

[Event "Kvibergspelen 2018"]
[Site "Prioritet Serneke Arena, Krutvagen 2, Gothenburg, Sweden"]
[Date "2018.04.21"]
[Round "3.15"]
[White "Ask, Josef"]
[Black "Petersson, Baldur Teodor"]
[Result "1-0"]
[TimeControl "15 minutes + 5 seconds per move from move one (Round 1 - 4) / 90 minutes + 30 seconds per move from move one (Round 5 - 8)"]
[WhiteTitle "FM"]
[BlackTitle "CM"]
[WhiteFideId "1704583"]
[BlackFideId "2309157"]
[WhiteElo "2173"]
[BlackElo "2003"]

1. e4 {[%clk 00:15:09]} c5 {[%clk 00:15:08]} {[%emt 00:00:02]} 2. d4 {[%clk
00:15:12]} {[%emt 00:00:03]} cxd4 {[%clk 00:15:08]} {[%emt 00:00:04]} 3. c3
{[%clk 00:15:16]} d3 {[%clk 00:15:12]} {[%emt 00:00:02]} 4. Bxd3 {[%clk
00:15:19]} {[%emt 00:00:02]} b6 {[%clk 00:14:36]} {[%emt 00:00:41]} 5. c4
{[%clk 00:15:20]} {[%emt 00:00:03]} Bb7 {[%clk 00:14:30]} {[%emt 00:00:12]} 6.
Nf3 {[%clk 00:15:19]} {[%emt 00:00:06]} e6 {[%clk 00:14:25]} {[%emt 00:00:10]}
7. O-O {[%clk 00:15:20]} {[%emt 00:00:04]} Be7 {[%clk 00:14:13]} {[%emt
00:00:17]} 8. Nc3 {[%clk 00:15:15]} {[%emt 00:00:09]} d6 {[%clk 00:14:16]}
{[%emt 00:00:03]} 9. Qe2 {[%clk 00:15:10]} {[%emt 00:00:10]} Nf6 {[%clk
00:14:18]} {[%emt 00:00:03]} 10. Rd1 {[%clk 00:14:51]} {[%emt 00:00:24]} Nbd7
{[%clk 00:14:20]} {[%emt 00:00:03]} 11. Bf4 {[%clk 00:14:29]} {[%emt 00:00:26]}
a6 {[%clk 00:14:17]} {[%emt 00:00:09]} 12. Rac1 {[%clk 00:14:29]} {[%emt
00:00:05]} Qc7 {[%clk 00:14:18]} {[%emt 00:00:03]} 13. Bb1 {[%clk 00:14:23]}
{[%emt 00:00:11]} Ne5 {[%clk 00:14:06]} {[%emt 00:00:17]} 14. b3 {[%clk
00:14:15]} {[%emt 00:00:13]} O-O {[%clk 00:13:55]} {[%emt 00:00:15]} 15. Nd4
{[%clk 00:14:13]} {[%emt 00:00:07]} Rfd8 {[%clk 00:13:38]} {[%emt 00:00:22]} 16.
Bg3 {[%clk 00:14:07]} {[%emt 00:00:11]} Nc6 {[%clk 00:13:13]} {[%emt 00:00:30]}
17. Nxc6 {[%clk 00:13:48]} {[%emt 00:00:25]} Bxc6 {[%clk 00:13:05]} {[%emt
00:00:13]} 18. Nd5 {[%clk 00:13:33]} {[%emt 00:00:19]} exd5 {[%clk 00:10:48]}
{[%emt 00:02:22]} 19. cxd5 {[%clk 00:13:33]} {[%emt 00:00:04]} Bb5 {[%clk
00:10:45]} {[%emt 00:00:08]} 20. Rxc7 {[%clk 00:13:21]} {[%emt 00:00:17]} Bxe2
{[%clk 00:10:47]} {[%emt 00:00:04]} 21. Re1 {[%clk 00:13:18]} {[%emt 00:00:08]}
Rac8 {[%clk 00:04:23]} {[%emt 00:06:29]} 22. Rxe7 {[%clk 00:13:05]} {[%emt
00:00:18]} Nh5 {[%clk 00:04:22]} {[%emt 00:00:06]} 23. Rb7 {[%clk 00:12:13]}
{[%emt 00:00:57]} Nxg3 {[%clk 00:02:37]} {[%emt 00:01:49]} 24. hxg3 {[%clk
00:12:12]} {[%emt 00:00:06]} Bb5 {[%clk 00:02:38]} {[%emt 00:00:03]} 25. Rxb6
{[%clk 00:12:06]} {[%emt 00:00:11]} Rc3 {[%clk 00:02:41]} {[%emt 00:00:02]} 26.
a4 {[%clk 00:11:15]} {[%emt 00:00:57]} Be8 {[%clk 00:02:44]} {[%emt 00:00:02]}
27. g4 {[%clk 00:10:18]} {[%emt 00:01:01]} f6 {[%clk 00:02:45]} {[%emt
00:00:04]} 28. f3 {[%clk 00:10:20]} {[%emt 00:00:04]} Kf7 {[%clk 00:02:28]}
{[%emt 00:00:21]} 29. Kf2 {[%clk 00:09:44]} {[%emt 00:00:42]} Ke7 {[%clk
00:02:30]} {[%emt 00:00:03]} 30. Re3 {[%clk 00:09:32]} {[%emt 00:00:17]} Rdc8
{[%clk 00:02:25]} {[%emt 00:00:10]} 31. Bd3 {[%clk 00:09:25]} {[%emt 00:00:12]}
a5 {[%clk 00:02:20]} {[%emt 00:00:10]} 32. Rb7+ {[%clk 00:08:55]} {[%emt
00:00:36]} Kd8 {[%clk 00:02:06]} {[%emt 00:00:18]} 33. Bc4 {[%clk 00:08:43]}
{[%emt 00:00:17]} Rxe3 {[%clk 00:00:51]} {[%emt 00:01:20]} 34. Kxe3 {[%clk
00:08:45]} {[%emt 00:00:02]} Bxa4 {[%clk 00:00:54]} {[%emt 00:00:02]} 35. Rxg7
{[%clk 00:08:40]} {[%emt 00:00:10]} Be8 {[%clk 00:00:58]} {[%emt 00:00:02]} 36.
Kd4 {[%clk 00:08:27]} {[%emt 00:00:18]} Bg6 {[%clk 00:00:51]} {[%emt 00:00:12]}
37. Ra7 {[%clk 00:08:24]} {[%emt 00:00:08]} Rc5 {[%clk 00:00:45]} {[%emt
00:00:11]} 38. f4 {[%clk 00:08:10]} {[%emt 00:00:20]} h5 {[%clk 00:00:39]}
{[%emt 00:00:11]} 39. gxh5 {[%clk 00:07:59]} {[%emt 00:00:16]} Bxh5 {[%clk
00:00:43]} {[%emt 00:00:01]} 40. e5 {[%clk 00:07:53]} {[%emt 00:00:11]} fxe5+
{[%clk 00:00:47]} {[%emt 00:00:02]} 41. fxe5 {[%clk 00:07:57]} Rc7 {[%clk
00:00:50]} {[%emt 00:00:02]} 42. Rxa5 {[%clk 00:07:52]} {[%emt 00:00:11]} dxe5+
{[%clk 00:00:53]} {[%emt 00:00:02]} 43. Kxe5 {[%clk 00:07:56]} {[%emt
00:00:01]} Rb7 {[%clk 00:00:33]} {[%emt 00:00:24]} 44. d6 {[%clk 00:07:45]}
{[%emt 00:00:15]} Rb8 {[%clk 00:00:32]} {[%emt 00:00:06]} 45. Ra7 {[%clk
00:07:42]} {[%emt 00:00:08]} Bg4 {[%clk 00:00:36]} {[%emt 00:00:01]} 46. Rg7
{[%clk 00:07:40]} {[%emt 00:00:07]} Bd7 {[%clk 00:00:39]} {[%emt 00:00:01]} 47.
Rg8+ {[%clk 00:07:37]} {[%emt 00:00:08]} Be8 {[%clk 00:00:43]} {[%emt
00:00:01]} 48. Bf7 {[%clk 00:07:13]} {[%emt 00:00:28]} Kd7 {[%clk 00:00:47]}
{[%emt 00:00:02]} 49. Bxe8+ {[%clk 00:07:10]} {[%emt 00:00:09]} 1-0

[Event "Kvibergspelen 2018"]
[Site "Prioritet Serneke Arena, Krutvagen 2, Gothenburg, Sweden"]
[Date "2018.04.21"]
[Round "3.16"]
[White "Kucuksari, Kaan"]
[Black "Torngren, Gustav"]
[Result "1-0"]
[TimeControl "15 minutes + 5 seconds per move from move one (Round 1 - 4) / 90 minutes + 30 seconds per move from move one (Round 5 - 8)"]
[WhiteTitle "FM"]
[WhiteFideId "6380166"]
[BlackFideId "1728970"]
[WhiteElo "2251"]
[BlackElo "1906"]

1. d4 {[%clk 00:15:08]} {[%emt 00:00:01]} Nf6 {[%clk 00:15:09]} {[%emt
00:00:01]} 2. Nf3 {[%clk 00:15:12]} {[%emt 00:00:01]} c5 {[%clk 00:15:12]}
{[%emt 00:00:02]} 3. d5 {[%clk 00:15:16]} e6 {[%clk 00:15:17]} 4. c4 {[%clk
00:15:20]} {[%emt 00:00:02]} exd5 {[%clk 00:15:21]} 5. cxd5 {[%clk 00:15:24]}
{[%emt 00:00:01]} d6 {[%clk 00:15:24]} {[%emt 00:00:02]} 6. Nc3 {[%clk
00:15:28]} g6 {[%clk 00:15:28]} 7. Bf4 {[%clk 00:15:31]} {[%emt 00:00:01]} Bg7
{[%clk 00:15:32]} {[%emt 00:00:02]} 8. Qa4+ {[%clk 00:15:35]} {[%emt 00:00:01]}
Bd7 {[%clk 00:15:23]} {[%emt 00:00:14]} 9. Qb3 {[%clk 00:15:39]} {[%emt
00:00:01]} Qc7 {[%clk 00:12:55]} {[%emt 00:02:32]} 10. h3 {[%clk 00:15:40]}
{[%emt 00:00:04]} O-O {[%clk 00:12:55]} {[%emt 00:00:05]} 11. e3 {[%clk
00:14:45]} {[%emt 00:01:00]} a6 {[%clk 00:12:25]} {[%emt 00:00:35]} 12. a4
{[%clk 00:14:40]} {[%emt 00:00:11]} Ra7 {[%clk 00:11:28]} {[%emt 00:01:02]} 13.
Be2 {[%clk 00:10:50]} {[%emt 00:03:54]} b6 {[%clk 00:11:25]} {[%emt 00:00:07]}
14. Nd2 {[%clk 00:10:40]} {[%emt 00:00:16]} Rb7 {[%clk 00:10:40]} {[%emt
00:00:51]} 15. Nc4 {[%clk 00:10:19]} {[%emt 00:00:25]} Ne8 {[%clk 00:10:19]}
{[%emt 00:00:26]} 16. O-O {[%clk 00:08:11]} {[%emt 00:02:12]} f5 {[%clk
00:09:16]} {[%emt 00:01:09]} 17. Rfc1 {[%clk 00:07:09]} {[%emt 00:01:07]} Rf7
{[%clk 00:06:34]} {[%emt 00:02:47]} 18. Qd1 {[%clk 00:06:44]} {[%emt 00:00:30]}
Bf8 {[%clk 00:05:36]} {[%emt 00:01:03]} 19. b4 {[%clk 00:05:30]} {[%emt
00:01:19]} Qd8 {[%clk 00:04:53]} {[%emt 00:00:48]} 20. Rab1 {[%clk 00:05:09]}
{[%emt 00:00:25]} Bc8 {[%clk 00:04:43]} {[%emt 00:00:16]} 21. Qd2 {[%clk
00:04:32]} {[%emt 00:00:42]} Qf6 {[%clk 00:04:05]} {[%emt 00:00:42]} 22. bxc5
{[%clk 00:04:11]} {[%emt 00:00:27]} bxc5 {[%clk 00:04:03]} {[%emt 00:00:07]} 23.
Na5 {[%clk 00:03:48]} {[%emt 00:00:28]} Rxb1 {[%clk 00:04:05]} {[%emt
00:00:03]} 24. Rxb1 {[%clk 00:03:52]} {[%emt 00:00:01]} Nd7 {[%clk 00:04:03]}
{[%emt 00:00:07]} 25. Nc6 {[%clk 00:03:39]} {[%emt 00:00:18]} Bg7 {[%clk
00:03:41]} {[%emt 00:00:26]} 26. Nd1 {[%clk 00:03:34]} {[%emt 00:00:10]} Rf8
{[%clk 00:03:01]} {[%emt 00:00:46]} 27. e4 {[%clk 00:03:07]} {[%emt 00:00:31]}
Nc7 {[%clk 00:00:55]} {[%emt 00:02:11]} 28. exf5 {[%clk 00:02:45]} {[%emt
00:00:27]} gxf5 {[%clk 00:00:57]} {[%emt 00:00:03]} 29. Bg5 {[%clk 00:02:38]}
{[%emt 00:00:11]} Qf7 {[%clk 00:00:51]} {[%emt 00:00:12]} 30. Ne3 {[%clk
00:01:51]} {[%emt 00:00:52]} Kh8 {[%clk 00:00:50]} {[%emt 00:00:06]} 31. Bf3
{[%clk 00:00:38]} {[%emt 00:01:17]} Re8 {[%clk 00:00:43]} {[%emt 00:00:12]} 32.
Nc4 {[%clk 00:00:40]} {[%emt 00:00:03]} Bf8 {[%clk 00:00:19]} {[%emt 00:00:30]}
33. Bd8 {[%clk 00:00:26]} {[%emt 00:00:19]} Nf6 {[%clk 00:00:08]} {[%emt
00:00:16]} 34. Qc3 {[%clk 00:00:23]} {[%emt 00:00:08]} Kg7 {[%clk 00:00:07]}
{[%emt 00:00:06]} 35. Bh5 {[%clk 00:00:19]} {[%emt 00:00:08]} Qxh5 {[%clk
00:00:06]} {[%emt 00:00:06]} 36. Qxf6+ {[%clk 00:00:20]} {[%emt 00:00:04]} Kg8
{[%clk 00:00:11]} 37. Bxc7 {[%clk 00:00:20]} {[%emt 00:00:05]} Bg7 {[%clk
00:00:10]} {[%emt 00:00:06]} 38. Qxd6 {[%clk 00:00:20]} {[%emt 00:00:04]} Qe2
{[%clk 00:00:10]} {[%emt 00:00:05]} 39. Ne3 {[%clk 00:00:22]} {[%emt 00:00:03]}
Qd3 {[%clk 00:00:10]} {[%emt 00:00:05]} 40. Rf1 {[%clk 00:00:22]} {[%emt
00:00:04]} a5 {[%clk 00:00:11]} {[%emt 00:00:05]} 41. Ne7+ {[%clk 00:00:22]}
{[%emt 00:00:04]} Kh8 {[%clk 00:00:13]} {[%emt 00:00:03]} 42. Nc6 {[%clk
00:00:12]} {[%emt 00:00:16]} Ba6 {[%clk 00:00:13]} {[%emt 00:00:06]} 43. Re1
{[%clk 00:00:11]} {[%emt 00:00:06]} Qd2 {[%clk 00:00:08]} {[%emt 00:00:10]} 44.
Rb1 {[%clk 00:00:10]} {[%emt 00:00:05]} Bd3 {[%clk 00:00:06]} {[%emt 00:00:07]}
45. Rd1 {[%clk 00:00:13]} {[%emt 00:00:02]} Qe2 {[%clk 00:00:07]} {[%emt
00:00:05]} 46. Qd7 {[%clk 00:00:15]} {[%emt 00:00:03]} Rxe3 {[%clk 00:00:09]}
{[%emt 00:00:03]} 47. Qd8 {[%clk 00:00:19]} Re8 {[%clk 00:00:13]} {[%emt
00:00:01]} 48. Qxe8 {[%clk 00:00:13]} {[%emt 00:00:10]} Qxe8 {[%clk 00:00:17]}
49. Rxd3 {[%clk 00:00:16]} {[%emt 00:00:02]} Qe4 {[%clk 00:00:12]} {[%emt
00:00:11]} 50. Re3 {[%clk 00:00:18]} {[%emt 00:00:03]} Qxd5 {[%clk 00:00:11]}
{[%emt 00:00:06]} 51. Re8 {[%clk 00:00:22]} {[%emt 00:00:02]} Bf8 {[%clk
00:00:15]} 52. Be5 {[%clk 00:00:24]} {[%emt 00:00:02]} Kg8 {[%clk 00:00:18]}
{[%emt 00:00:03]} 53. Ne7+ {[%clk 00:00:27]} 1-0